Cogmind - Beta 16.1 @@@ ROGUE MODE // 2026.01.06 @ 16:26:07 Player: BlobtheGreat Result: Destroyed by D-53 Grenadier with Mini Grenade Launcher Performance ------------- Evolutions (0) 0 Regions Visited (2) 400 Robots Destroyed (35) 175 Value Destroyed (507) 507 Prototype IDs (1) 20 Alien Tech Used (0) 0 Bonus (-139) -139 TOTAL SCORE: 963 Bonus ------- Friendly Fire -139 Cogmind --------- Core Integrity 0/250 Matter 282/300 Energy 67/100 System Corruption 1% Temperature Cool (0) Movement Treading (160) Location -10/Mines Parts ------- > --- POWER (1) -------- (None) > --- PROPULSION (2) --- Light Treads Light Treads > --- UTILITY (2) ------ Large Storage Unit Seismic Detector > --- WEAPON (2) ------- Small Laser Light Assault Rifle > --- INVENTORY (15) --- Ion Engine Aluminum Leg Aluminum Leg High-capacity Storage Unit Machine Analyzer Experimental Sensor Array Seismic Detector Grenade Launcher Grenade Launcher Grenade Launcher Rocket Launcher Makeshift Sword Botcube Peak State ------------ > --- POWER ------------ (None) > --- PROPULSION ------- Light Treads Light Treads > --- UTILITY ---------- Large Storage Unit Experimental Sensor Array > --- WEAPON ----------- (None) > --- INVENTORY -------- Ion Engine Light Treads Aluminum Leg Aluminum Leg High-capacity Storage Unit Machine Analyzer Seismic Detector Seismic Detector Small Laser Grenade Launcher Grenade Launcher Grenade Launcher Botcube [Rating: 14] Favorites ----------- Power Ion Engine Engine Ion Engine Propulsion Light Treads Treads Light Treads Utility Large Storage Unit Device Seismic Detector Storage Large Storage Unit Weapon Small Laser Energy Gun Small Laser Ballistic Gun Assault Rifle Launcher Grenade Launcher Slashing Weapon Makeshift Sword Build | -11 -10 -10 ------- Run | Yrd Mat Min Slots Evolved . | . . . Power . | . . . Propulsion . | . . . Utility . | . . . Weapon . | . . . Parts Attached 16 | 7 3 6 Power 1 | 1 . . Engine 1 | 1 . . Core . | . . . Reactor . | . . . Propulsion 3 | 2 . 1 Treads 3 | 2 . 1 Leg . | . . . Wheel . | . . . Hover . | . . . Flight . | . . . Utility 4 | 2 1 1 Device 2 | 1 . 1 Storage 2 | 1 1 . Processor . | . . . Hackware . | . . . Protection . | . . . Artifact . | . . . Weapon 8 | 2 2 4 Energy Gun 2 | 1 . 1 Energy Cannon . | . . . Ballistic Gun 2 | 1 . 1 Ballistic Cannon . | . . . Launcher 3 | . 2 1 Special Weapon . | . . . Impact Weapon . | . . . Slashing Weapon 1 | . . 1 Piercing Weapon . | . . . Special Melee Weapon . | . . . Unidentified Prototypes 1 | . . 1 Parts Lost 4 | . 3 1 Power 1 | . 1 . Propulsion 1 | . . 1 Utility . | . . . Weapon 2 | . 2 . Highest Loss Streak 2 | . 2 1 To Critical Strikes . | . . . Average Backups 10 | 3 8 12 Power . | . 1 1 Propulsion 2 | 1 2 3 Utility 3 | . 2 4 Weapon 3 | . 2 4 Tool/Special . | . . . Unused Backups 9 | 2 . 7 Power 1 | . . 1 Propulsion 4 | 2 . 2 Utility 3 | . . 3 Weapon 1 | . . 1 Tool/Special . | . . . Average Slot Usage (%) 77 | . 86 70 Engine 4 | . 10 . Treads 27 | . 27 28 Device 11 | . 12 10 Storage 14 | . 14 14 Energy Gun 9 | . 9 9 Ballistic Gun 4 | . 9 . Slashing Weapon 3 | . . 6 Peak Build Rating 14 | 8 9 14 Average Rating 8 | 6 7 9 On Entrance 4 | . 8 5 Avg Prop Armor Cover (%) . | . . . Naked Turns . | . . . Heaviest Build 31 | 15 31 27 Greatest Support 40 | 40 40 40 Greatest Overweight (x) . | . . . Average Overweight (x) . | . . . Largest Inventory Capacity 15 | 8 15 15 Average Capacity 14 | 6 13 15 Most Carried 14 | 7 12 14 Average Carried 11 | 4 9 13 Final Capacity 15 | 8 15 15 Final Carried 13 | 6 12 13 Class Distribution -------------------- 100% | Mutant Dominant Class ---------------- Mutant | -10/Materials Mutant | -10/Mines Resources | -11 -10 -10 ----------- Run | Yrd Mat Min Matter Collected 827 | 285 282 260 Remotely . | . . . Salvage Created 1175 | 110 610 455 Parts 67 | 12 37 18 Haulers Intercepted 2 | . 2 . Recyclers Shooed 2 | 1 1 . Parts Field Recycled . | . . . Retrieved Matter . | . . . Parts Self-Destructed . | . . . Prevented . | . . . Parts Restored . | . . . Kills | -11 -10 -10 ------- Run | Yrd Mat Min Combat Hostiles Destroyed 28 | . 14 14 Guns 11 | . 11 . AOE 17 | . 3 14 Classes Destroyed 10 | 2 7 1 Worker 2 | . 1 1 Builder 1 | . 1 . Tunneler 4 | 2 . 2 Hauler 2 | . 2 . Recycler 7 | 1 1 5 Mechanic 1 | . 1 . Watcher 3 | . 3 . Swarmer 6 | . 6 . Grunt 8 | . 8 . Assembled 14 | . . 14 Thug 1 | . . 1 Best Kill Streak 6 | 2 4 6 Combat Bots Only 6 | . 3 6 Max Kills in Single Turn 5 | 1 3 5 Gunslinging . | . . . Exploded 4 | . 2 4 Melee . | . . . Uniques/NPCs Destroyed . | . . . Combat | -11 -10 -10 -------- Run | Yrd Mat Min Hostile Shots Fired 74 | . 57 17 Missed 18 | . 12 6 Hits 56 | . 45 11 Projectile 56 | . 45 11 AOE 8 | . . 8 Damage Taken 1072 | . 616 456 Core 254 | . 94 160 Absorbed by Shields . | . . . Regen/Repaired (Parts) 193 | . 193 . Core Remaining (%) 100 | 100 . . Volleys Fired 87 | 5 66 16 Largest 2 | 2 2 2 Hottest 70 | 70 70 60 Shots Fired 162 | 10 127 25 Gun 142 | 10 123 9 Cannon . | . . . Launcher 20 | . 4 16 Special . | . . . Kinetic 70 | 5 62 3 Thermal 72 | 5 61 6 Explosive 20 | . 4 16 Electromagnetic . | . . . Robot Hit Streak 18 | 4 18 3 Robot Miss Streak 4 | 1 4 2 Penetration Max . | . . . Secondary Targets 1 | . 1 . Max Gunslinging Chain 1 | . 1 . Shots Hit Robots 109 | 6 84 19 Core Hits 86 | 4 37 45 Critical Kills . | . . . Critical Parts Destroyed . | . . . Critical Strikes 3 | . 3 . Burn 3 | . 3 . Melee Attacks 11 | . . 11 Impact . | . . . Slashing 11 | . . 11 Piercing . | . . . Sneak Attacks 9 | . . 9 Combat Hostiles . | . . . Follow-up Attacks . | . . . Damage Inflicted 3217 | 74 1540 1603 Guns 1167 | 74 1035 58 Cannons . | . . . Explosions 1273 | . 464 809 Melee 724 | . . 724 Ramming 53 | . 41 12 Kinetic 585 | 36 524 25 Thermal 582 | 38 511 33 Explosive 1273 | . 464 809 Electromagnetic . | . . . Impact . | . . . Slashing 724 | . . 724 Piercing . | . . . Highest Corruption 1 | . 1 1 Average Corruption 1 | . 1 1 Corruption Purged . | . . . Corruption Blocked . | . . . Effects 15 | . 4 11 Message Errors 3 | . . 3 Matter Fused 6 | . 1 5 Energy Discharges 2 | . 2 . Data Loss (major) 1 | . 1 . Alerts 2 | . . 2 Weapon Failures 1 | . . 1 Overload Shots . | . . . Overflow Damage 221 | . 55 166 Projectiles . | . . . Explosions 105 | . 55 50 Melee 116 | . . 116 Knockbacks . | . . . Impact . | . . . Kinetic . | . . . Secondary . | . . . Self-Inflicted Damage 181 | . 133 48 Shots 7 | . 4 3 Rammed 8 | . 5 3 Targets Rammed 8 | . 5 3 Kicked . | . . . Crushed . | . . . Highest Temperature 153 | 38 153 20 Average Temperature 39 | 17 41 10 Received Heat Transfer 224 | . 204 20 Siege Activations . | . . . Martial Activations . | . . . Shielding Activations . | . . . Robots Disrupted . | . . . Combat Hostiles . | . . . Robots Corrupted . | . . . Combat Hostiles . | . . . Parts Fried . | . . . Impact Corruptions . | . . . Robots Melted . | . . . Combat Hostiles . | . . . Parts Melted . | . . . Heat Transferred 1888 | 111 1702 75 Parts Sabotaged . | . . . Parts Stolen . | . . . Parts Stripped . | . . . Power Chain Reactions . | . . . Alert | -11 -10 -10 ------- Run | Yrd Mat Min Maximum Alert Level . | . . . Low Security (%) 100 | 100 100 100 Level 1 . | . . . Level 2 . | . . . Level 3 . | . . . Level 4 . | . . . Level 5 . | . . . High Security . | . . . Max Security . | . . . Peak Influence 179 | 5 179 41 Initial 41 | . . 41 Average 33 | 1 76 2 Influence Increases 607 | 15 496 96 Destroy 0b10 Robot/C 280 | . 280 . Destroy 0b10 Robot/NC 100 | 15 45 40 Destroy Leader 70 | . 70 . Successful Hack 25 | . 25 . Disable Machine 30 | . 30 . Destroy Structure 102 | . 46 56 Influence Decreases 607 | 15 389 203 Entered New Map 66 | . . 66 Time Decay 495 | 15 359 121 Lost Part 30 | . 30 . Lost Ally 16 | . . 16 Squads Dispatched 4 | . 4 . Investigation 2 | . 2 . Extermination . | . . . Reinforcement 2 | . 2 . Assault . | . . . Garrison . | . . . Intercept . | . . . Searches Triggered . | . . . Construction Impeded . | . . . Haulers Reinforced . | . . . Active Scanning Responses . | . . . Cargo Convoy Interrupts . | . . . Stealth | -11 -10 -10 --------- Run | Yrd Mat Min Distress Signals 2 | . 2 . Communications Jammed . | . . . Distress Signals . | . . . Times Spotted 42 | . 23 19 Peak Tracking Total 7 | . 3 7 Tactical Retreats . | . . . Traps | -11 -10 -10 ------- Run | Yrd Mat Min Traps Triggered 2 | . 2 . Indirectly . | . . . Trap Hack Attempts . | . . . Triggered . | . . . Disarmed . | . . . Reprogrammed . | . . . Reused . | . . . Traps Extracted . | . . . Installed . | . . . Triggered . | . . . Machines | -11 -10 -10 ---------- Run | Yrd Mat Min Machines Disabled 2 | . 2 . Max in Single Turn 2 | . 2 . Machines Repaired . | . . . Machines Dismantled . | . . . Machines Sabotaged . | . . . Overloaded Fab Kills . | . . . Hacking | -11 -10 -10 --------- Run | Yrd Mat Min Machines Accessed 7 | . 7 . Terminals 5 | . 5 . Fabricators . | . . . Repair Stations 1 | . 1 . Recycling Units 1 | . 1 . Scanalyzers . | . . . Garrison Access . | . . . Total Hacks 22 | . 22 . Successful 13 | . 13 . Failed 9 | . 9 . Catastrophic 2 | . 2 . Database Lockouts . | . . . Manual 10 | . 10 . Terminals 12 | . 12 . Fabricators . | . . . Repair Stations 7 | . 7 . Recycling Units 3 | . 3 . Scanalyzers . | . . . Garrison Access . | . . . Terminal Hacks 8 | . 8 . Part Schematic 1 | . 1 . Robot Schematic 1 | . 1 . Robot Analysis 4 | . 4 . Emergency Access Points 1 | . 1 . Alert Level 1 | . 1 . Fabricator Hacks . | . . . Repair Station Hacks 4 | . 4 . Scan Component 2 | . 2 . Repair 2 | . 2 . Recycling Unit Hacks . | . . . Scanalyzer . | . . . Garrison Access Hacks . | . . . Unauthorized Hacks 1 | . 1 . Terminals 1 | . 1 . Botnet 1 | . 1 . Fabricators . | . . . Repair Stations . | . . . Recycling Units . | . . . Scanalyzers . | . . . Garrison Access . | . . . Data Cores Recovered . | . . . Used . | . . . Hacking Detections 7 | . 7 . Full Trace Events 2 | . 2 . Feedback Events . | . . . Feedback Blocked . | . . . Robot Schematics Acquired 1 | . 1 . Robots Built . | . . . Authchips . | . . . Time . | . . . Total Robot Build Rating . | . . . Part Schematics Acquired 1 | . 1 . Parts Built . | . . . Authchips . | . . . Time . | . . . Total Part Build Rating . | . . . Part Studies Acquired . | . . . Parts Repaired 2 | . 2 . Time 52 | . 52 . Parts Recycled . | . . . Recycled Matter . | . . . Retrieved Matter . | . . . Retrieved Components . | . . . Parts Scanalyzed . | . . . Part Schematics Acquired . | . . . Parts Damaged . | . . . Bothacking | -11 -10 -10 ------------ Run | Yrd Mat Min Used RIF Installer . | . . . Robots Hacked . | . . . Non-combat . | . . . Combat . | . . . Robot Hacks Applied . | . . . Relay Couplers Released . | . . . Fabnet Peak Effective % . | . . . Robots Rewired . | . . . Allies Hacked . | . . . Hacks Repelled . | . . . Allies | -11 -10 -10 -------- Run | Yrd Mat Min Total Allies 5 | . . 5 Largest Group 3 | . . 3 Highest-Rated Group 41 | . . 41 Highest-Rated Ally 31 | . . 31 Total Orders . | . . . Ally Attacks 15 | . . 15 Total Damage 135 | . . 135 Kills 3 | . . 3 Allies Corrupted . | . . . Allies Melted . | . . . Intel | -11 -10 -10 ------- Run | Yrd Mat Min Active Infowar (turns) 2995 | 59 1409 1527 Sensors 3 | . . 3 Seismic 2992 | 59 1409 1524 Robot Analysis Total 4 | . 4 . Derelict Logs Recovered . | . . . Drone Launches . | . . . Drone Recoveries . | . . . Exploration | -11 -10 -10 ------------- Run | Yrd Mat Min Turns Passed 3601 | 146 1518 1937 Spaces Moved 1728 | 74 705 949 Core 4 | 4 . . Treads 1724 | 70 705 949 Legs . | . . . Wheels . | . . . Hover . | . . . Flight . | . . . Fastest Speed 50 | 50 160 160 Average Speed 159 | 154 160 160 Slowest Speed 160 | 160 160 160 Overloaded Moves . | . . . Propulsion Burnouts . | . . . Robots Hopped . | . . . Potential Cave-ins . | . . . Cave-ins Triggered . | . . . Exploration Rate (%) 65 | 6 91 98 Regions Visited 2 Branch Regions 1 Pre-discovered Areas . | . . . Known Exits Taken . | . . . Unknown Exits Taken 2 | 1 1 . Scrap Searched 1 | . . 1 Spaces Dug 35 | . . 35 Terrain Destroyed 125 | . 52 73 Melee . | . . . Projectile . | . . . AOE 125 | . 52 73 Terrain Rammed . | . . . Walls Destroyed . | . . . Machines Disabled . | . . . Actions | -11 -10 -10 --------- Run | Yrd Mat Min Total 2388 | 94 964 1330 Wait 509 | . 175 334 Move 1726 | 73 704 949 Hop . | . . . Pick Up 16 | 7 5 4 Fast Attach 10 | 7 2 1 Attach 8 | . 1 7 Detach 6 | . 2 4 Swap 4 | . 3 1 Drop 3 | 2 1 . Fire 87 | 5 66 16 Melee 11 | . . 11 Ram . | . . . Kick . | . . . Crush 8 | . 5 3 Escape Stasis . | . . . Rewire . | . . . Trap . | . . . Miscellaneous . | . . . Route ------- -11/Scrapyard -10/Materials (discovered 4 exits: [*Mat x2] / [*Min x2]) -10/Mines (discovered 4 exits: [*Mat x2] / [*Exi] / [*Sub]) History --------- Turn | Location | Event 11 | -11/Scrapyard | Discovered new exit (range 16) 147 | -11/Scrapyard | Entered Materials 275 | -10/Materials | Discovered new exit (range 8) 300 | -10/Materials | Build established: Mutant 726 | -10/Materials | Discovered new exit (range 8) 933 | -10/Materials | Discovered new exit (range 15) 1225 | -10/Materials | Discovered new exit (range 4) 1527 | -10/Materials | Repaired Lgt. Treads 1554 | -10/Materials | Repaired Lgt. Treads 1665 | -10/Materials | Entered Mines 1823 | -10/Mines | Deemed a non-threat by the Exiles lab entrance 1825 | -10/Mines | Discovered new exit (range 5) 1938 | -10/Mines | Found a damaged Exp. Sensor Array with a note attached 1939 | -10/Mines | Assembled infested the area 1942 | -10/Mines | Found Prototype Device 1942 | -10/Mines | Identified Exp. Sensor Array 1944 | -10/Mines | Assisted by a Guerilla fighting off Assembled 2174 | -10/Mines | Core integrity fell below 50% 2628 | -10/Mines | A weapon hastily lodged in a ceiling crevice suddenly fell to the ground 2680 | -10/Mines | Assisted by bots powering up and referring to "LRC-V3" 2711 | -10/Mines | Received a Rocket Launcher from a helpful Derelict 2814 | -10/Mines | Discovered new exit (range 9) 2951 | -10/Mines | Discovered new exit (range 5) 3013 | -10/Mines | Discovered new exit (range 12) 3597 | -10/Mines | Core integrity fell below 20% 3602 | -10/Mines | Destroyed by D-53 Grenadier with Mini Grenade Launcher Last Messages --------------- 03088_ System corrupted: IFF burst signal emitted. 03136_ Sneak attack on K-01 Serf. 03136_ K-01 Serf destroyed. 03289_ System corrupted: Matter fused (-9). 03300_ Acquired 9 matter. 03303_ Sneak attack on R-06 Scavenger. 03303_ R-06 Scavenger destroyed. 03339_ Sneak attack on R-06 Scavenger. 03339_ R-06 Scavenger destroyed. 03339_ R-06 Scavenger collects Com. Wheel. 03342_ Sneak attack on R-06 Scavenger. 03342_ R-06 Scavenger destroyed. 03488_ Sneak attack on T-07 Excavator. 03488_ Destroyed Mining Laser. 03488_ T-07 Excavator destroyed. 03592_ Mercenary 1a destroyed. 03592_ Trooper 1b destroyed. 03596_ Trooper 1a destroyed. 03600_ Lgt. Treads destroyed. Map ----- +----------------------------------------------------+ | | | | | ?????????????????????????????????????????????????? | | ??????????????????###############????????????????? | | ??????????????????# #????????????????? | | ??????????????????# < #####???????????## | | ??????????????????# #######?????# | | ??????????????????# ## #?????# | | ??????????????????# ## ##### #?????# | | ??????????????????# ## #???# #?????# | | ??????????????????########% ###### #???# #####?# | | ?????????????????????????# =###### ##??# #??# | | ?????????????????????????# % #??##### #??# | | ?????????????????????????# ## ## ######?# #??# | | ?????????????????????##### %## ### ## ### #### | | ??????????????######## ## #?## ## | | ?###########??# ##### ##?## ###### | | ?# #??# #?## #### """" ##??? | | ## #??# ########## ## """" #??# | | #??# ####???## """" #### | | """ #??# # ##?## |%*= | | ## < """ #??# ## dd #### ###! | | ## """ #??# #??####?## ##### | | ## % #?## #????????## #???# | | ## """ """ ### = #?????????## #??# | | ## """ """ @ ###????????## | | ## """ """ # = ##????????## ##### | | ## # "" ##????????###???# | | ## # "" #??????????????# | | ####### #### "" # t #??????????????# | | ##????# #??## "" ### #### ##??????????????# | | ##???# #???#== ###??# #???####???????????##### | | ##??# #####!%####??### ####??????????????## ## | | #### !*%!*=!##??## ##?????????????# | | # ####=! #### #?????????????# | | #??## #?????????????# | | ##???## ##?????????????# | | #?????## ##????????####### # | | # #??????### ##?????????# ## | | # #????????## #??????????# ##### ### | | ## ##????????## #??????????# #???# ### | | ?## ##????????## #??????????# #???# | | ### ##????????# ##??????????# #???# ### | | ####?????## ##???????????# #???# ### | | #### ##?????## #????????????# #???# | | #??## ########% #????????????# #???# #### | | #???## #????????????# #???# #??? | | #????# ####### #????????##### #???# #??? | | ###### ## ## ##?##### #????????# #???# #??? | | ## ## #####??#=*= #????????# #####???# #??? | +----------------------------------------------------+ Best States ------------- Heat Dissipation 25 Energy Generation 10 Energy Capacity 250 Matter Stores 300 Matter Capacity 300 Sight Range 16 Terrain Scan Density 10 Evasion (%) 40 Recoil Reduction 2 Item Schematics ----------------- Hcp. Storage Unit | -10/Materials | Hacked Robot Schematics ------------------ M-13 Machinist | -10/Materials | Hacked Fabricated ------------ Nothing Repaired ---------- Lgt. Treads | 23% | -10/Materials Lgt. Treads | 38% | -10/Materials Studied --------- None Alien Tech Used ----------------- None Achievements -------------- None Challenges ------------ None Game ------ Seed MobileLaunchOptics Manual? 0 Play Time 00:16:25 Cumulative 246.0 hours Start 2026.01.06 @ 16:14:40 End 2026.01.06 @ 16:26:07 Sessions 1 Manual Loads 0 Difficulty Rogue Special Mode None Game No. 235 Rogue 235 Adventurer 0 Explorer 0 Win Type - Total 11 Types 8/0/2/0/0/0/0/0/0/1 Lore% 87 Gallery% 77 Achievement% 62 Wizard Run 0 Options --------- Layout 1 ASCII 0 Keyboard 1 Movement Arrows Keybinds 0 Fullscreen 1 Font 24/Smallcaps Map View 50x40 Zoom Use 0% Tactical HUD 1 Map Filters NONE Filters NONE Steam 1 RUN: 3c62e290-4ce7-4952-8720-a5058bf036d8